lending/lending_fUSD_20250621
["ID","MTS","AMOUNT","RATE_DAILY","PERIOD"]
[366819071,1750474242936,-157.86261516,0.00026555,2]
[366819072,1750474242946,-150.0,0.00026562,2]
[366819073,1750474242956,-157.86261516,0.0002657,2]
[366819074,1750474242966,-333.51041702,0.00026571,2]
[366819075,1750474242976,-638.72623483,0.00026579,3]
[366819076,1750474242986,-150.0,0.0002658,2]
[366819077,1750474242997,-6387.2623483,0.0002658,3]
[366819078,1750474243008,-206.19471464,0.0002658,2]
[366819079,1750474243018,-500.0,0.0002658,4]
[366819081,1750474243029,-1680.0,0.00026584,2]
[366819082,1750474243041,-157.86261516,0.00026584,2]
[366819083,1750474243053,-161.90690919,0.0002659,2]
[366819084,1750474243064,-151.0,0.0002659,7]
[366819085,1750474243075,-151.0,0.0002659,7]
[366819086,1750474243085,-834.26476573,0.0002659,3]
[366819087,1750474243095,-870.5432952,0.0002659,2]
[366819088,1750474243105,-182.449486,0.0002659,7]
[366819089,1750474243115,-182.449486,0.0002659,7]
[366819090,1750474243126,-151.0,0.0002659,7]
[366819091,1750474243136,-151.0,0.0002659,7]
[366819092,1750474243146,-151.0,0.0002659,7]
[366819094,1750474243157,-151.0,0.0002659,7]
[366819095,1750474243167,-151.0,0.0002659,7]
[366819098,1750474243178,-151.0,0.0002659,7]
[366819100,1750474243200,-2554.90493932,0.0002659,3]
[366819101,1750474243211,-167.920789,0.0002659,7]
[366819102,1750474243222,-227.528202,0.0002659,7]
[366819103,1750474243232,-227.528202,0.0002659,7]
[366819104,1750474243243,-151.0,0.0002659,7]
[366819105,1750474243254,-151.0,0.0002659,7]
[366819106,1750474243264,-151.0,0.0002659,7]
[366819107,1750474243274,-213.542876,0.0002659,7]
[366819108,1750474243285,-213.542876,0.0002659,7]
[366819109,1750474243296,-209.992116,0.0002659,7]
[366819110,1750474243307,-209.992116,0.0002659,7]
[366819111,1750474243318,-151.0,0.0002659,7]
[366819112,1750474243328,-151.0,0.0002659,7]
[366819113,1750474243339,-157.86261516,0.00026598,2]
[366819114,1750474243349,-490.0,0.00026599,4]
[366819115,1750474243360,-500.0,0.00026599,4]
[366819116,1750474243371,-250000.0,0.000266,2]
[366819117,1750474243382,-150.0,0.000266,2]
[366819118,1750474243392,-150.0,0.000266,2]
[366819119,1750474243402,-151.626912,0.000266,7]
[366819120,1750474243412,-151.0,0.000266,7]
[366819121,1750474243423,-151.0,0.000266,7]
[366819122,1750474243432,-182.449486,0.000266,7]
[366819123,1750474243443,-182.449486,0.000266,7]
[366819124,1750474243454,-151.0,0.000266,7]
[366819125,1750474243464,-151.0,0.000266,7]
[366819126,1750474243475,-151.0,0.000266,7]
[366819127,1750474243485,-161.209748,0.000266,7]
[366819128,1750474243496,-900.0,0.000266,9]
[366819129,1750474243507,-151.0,0.000266,7]
[366819130,1750474243518,-151.0,0.000266,7]
[366819131,1750474243529,-227.528202,0.000266,7]
[366819132,1750474243539,-227.528202,0.000266,7]
[366819133,1750474243550,-151.0,0.000266,7]
[366819134,1750474243562,-151.0,0.000266,7]
[366819135,1750474243573,-621.93105453,0.000266,2]
[366819136,1750474243583,-157.16346,0.000266,7]
[366819137,1750474243595,-213.542876,0.000266,7]
[366819138,1750474243606,-213.542876,0.000266,7]
[366819139,1750474243617,-151.0,0.000266,7]
[366819140,1750474243628,-151.0,0.000266,7]
[366819141,1750474243639,-209.992116,0.000266,7]
[366819142,1750474243656,-209.992116,0.000266,7]
[366819143,1750474243667,-151.0,0.000266,7]
[366819144,1750474243677,-151.0,0.000266,7]
[366819145,1750474243688,-192.117625,0.000266,7]
[366819146,1750474243699,-192.117625,0.000266,7]
[366819147,1750474243710,-548.65276866,0.00026608,4]
[366819148,1750474243721,-157.86261516,0.00026613,2]
[366819149,1750474243732,-157.86261516,0.00026627,2]
[366819150,1750474243743,-157.86261516,0.00026642,2]
[366819151,1750474243754,-157.86261516,0.00026656,2]
[366819152,1750474243765,-2000.0,0.00026664,2]
[366819153,1750474243776,-700.0,0.0002667,2]
[366819154,1750474243787,-500.0,0.00026673,2]
[366819155,1750474243798,-501.84237224,0.00026673,2]
[366819156,1750474243809,-500.0,0.00026673,2]
[366819157,1750474243820,-499.9796578,0.00026673,2]
[366819158,1750474243830,-500.0,0.00026673,2]
[366819159,1750474243841,-4296.33916034,0.00026675,2]
[366819160,1750474243852,-153.84,0.00026676,2]
[366819161,1750474243862,-150.0,0.00026681,2]
[366819162,1750474243872,-7513.0,0.00026685,2]
[366819163,1750474243883,-259.79,0.00026688,2]
[366819164,1750474243894,-490.0,0.00026689,4]
[366819165,1750474243905,-151.0,0.00026689,7]
[366819166,1750474243916,-239.673524,0.00026689,7]
[366819167,1750474243928,-182.449486,0.00026689,7]
[366819168,1750474243939,-182.449486,0.00026689,7]
[366819169,1750474243951,-182.449486,0.00026689,7]
[366819171,1750474243960,-182.449486,0.00026689,7]
[366819172,1750474243971,-152.632726,0.00026689,7]
[366819173,1750474243981,-490.0,0.00026689,4]
[366819174,1750474243992,-151.0,0.00026689,7]
[366819175,1750474244003,-151.0,0.00026689,7]
[366819176,1750474244013,-151.0,0.00026689,7]
[366819177,1750474244023,-151.0,0.00026689,7]
[366819178,1750474244034,-490.0,0.00026689,4]
[366819179,1750474244048,-490.0,0.00026689,4]
[366819180,1750474244059,-151.0,0.00026689,7]
[366819181,1750474244074,-151.0,0.00026689,7]
[366819182,1750474244085,-294.674709,0.00026689,7]
[366819183,1750474244095,-227.528202,0.00026689,7]
[366819184,1750474244106,-227.528202,0.00026689,7]
[366819185,1750474244116,-227.528202,0.00026689,7]
[366819186,1750474244127,-227.528202,0.00026689,7]
[366819187,1750474244138,-151.0,0.00026689,7]
[366819188,1750474244149,-151.0,0.00026689,7]
[366819189,1750474244159,-151.0,0.00026689,7]
[366819190,1750474244171,-151.0,0.00026689,7]
[366819191,1750474244182,-213.542876,0.00026689,7]
[366819192,1750474244193,-213.542876,0.00026689,7]
[366819193,1750474244323,-213.542876,0.00026689,7]
[366819194,1750474244334,-213.542876,0.00026689,7]
[366819195,1750474244344,-209.992116,0.00026689,7]
[366819196,1750474244355,-209.992116,0.00026689,7]
[366819197,1750474244365,-209.992116,0.00026689,7]
[366819198,1750474244375,-209.992116,0.00026689,7]
[366819199,1750474244384,-151.0,0.00026689,7]
[366819200,1750474244394,-151.0,0.00026689,7]
[366819201,1750474244404,-151.0,0.00026689,7]
[366819202,1750474244414,-151.0,0.00026689,7]
[366819203,1750474244423,-550.40841218,0.0002669,2]
[366819204,1750474244433,-152.704596,0.0002669,7]
[366819205,1750474244443,-151.177952,0.0002669,7]
[366819206,1750474244453,-151.0,0.0002669,7]
[366819207,1750474244464,-151.0,0.0002669,7]
[366819208,1750474244474,-151.0,0.0002669,7]
[366819209,1750474244485,-151.0,0.0002669,7]
[366819210,1750474244495,-182.449486,0.0002669,7]
[366819211,1750474244506,-182.449486,0.0002669,7]
[366819212,1750474244516,-151.0,0.0002669,7]
[366819213,1750474244526,-244.533468,0.0002669,7]
[366819214,1750474244535,-151.0,0.0002669,7]
[366819215,1750474244545,-74324.750864,0.0002669,2]
[366819216,1750474244555,-2595.6609501,0.0002669,2]
[366819217,1750474244565,-227.528202,0.0002669,7]
[366819218,1750474244574,-227.528202,0.0002669,7]
[366819219,1750474244584,-151.0,0.0002669,7]
[366819220,1750474244594,-153.024508,0.0002669,7]
[366819221,1750474244604,-213.542876,0.0002669,7]
[366819222,1750474244614,-213.542876,0.0002669,7]
[366819223,1750474244624,-153.969643,0.0002669,7]
[366819224,1750474244634,-151.0,0.0002669,7]
[366819225,1750474244645,-209.992116,0.0002669,7]
[366819226,1750474244657,-209.992116,0.0002669,7]
[366819227,1750474244667,-151.0,0.0002669,7]
[366819228,1750474244678,-151.0,0.0002669,7]
[366819229,1750474244689,-192.117625,0.0002669,7]
[366819230,1750474244699,-192.117625,0.0002669,7]
[366819231,1750474244710,-150.0,0.00026694,2]
[366819232,1750474244720,-200.0,0.00026699,2]
[366819233,1750474244730,-500.0,0.00026699,4]
[366819234,1750474244740,-500.0,0.00026699,4]
[366819235,1750474244750,-500.0,0.00026699,4]
[366819236,1750474244760,-500.0,0.00026699,4]
[366819237,1750474244770,-500.0,0.00026699,4]
[366819238,1750474244780,-500.0,0.00026699,4]
[366819240,1750474244790,-500.0,0.00026699,4]
[366819242,1750474244799,-500.0,0.00026699,4]
[366819243,1750474244809,-500.0,0.00026699,4]
[366819245,1750474244819,-151.0,0.00026699,7]
[366819247,1750474244830,-213.542876,0.00026699,7]
[366819249,1750474244839,-213.542876,0.00026699,7]
[366819250,1750474244849,-151.0,0.00026699,7]
[366819251,1750474244859,-151.0,0.00026699,7]
[366819252,1750474244870,-316.26635967,0.00026699,2]
[366819253,1750474244881,-164.68135485,0.00026699,2]
[366819254,1750474244891,-333.62695943,0.00026699,2]
[366819255,1750474244902,-161912.5744029,0.000267,2]
[366819256,1750474244912,-150.0,0.000267,2]
[366819257,1750474244922,-150.0,0.000267,2]
[366819258,1750474244932,-10253.86341754,0.000267,5]
[366819259,1750474244942,-1469898.87983451,0.000267,5]
[366819260,1750474244952,-1561.01,0.000267,2]
[366819261,1750474244962,-319191.58701364,0.000267,2]
[366819262,1750474244972,-1411.36,0.000267,2]
[366819263,1750474244982,-1625.15161617,0.000267,2]
[366819264,1750474244991,-150.0,0.000267,2]
[366819265,1750474245002,-151.84101589,0.000267,2]
[366819266,1750474245012,-151.837463,0.000267,7]
[366819267,1750474245023,-506.067724,0.000267,7]
[366819268,1750474245033,-506.067724,0.000267,7]
[366819269,1750474245048,-506.067724,0.000267,7]
[366819270,1750474245059,-151.0,0.000267,7]
[366819271,1750474245068,-151.0,0.000267,7]
[366819272,1750474245078,-151.0,0.000267,7]
[366819273,1750474245089,-506.067724,0.000267,7]
[366819274,1750474245099,-506.067724,0.000267,7]
[366819275,1750474245109,-506.067724,0.000267,7]
[366819276,1750474245120,-254.749703,0.000267,7]
[366819277,1750474245130,-151.0,0.000267,7]
[366819278,1750474245140,-151.0,0.000267,7]
[366819279,1750474245151,-151.0,0.000267,7]
[366819280,1750474245162,-151.0,0.000267,7]
[366819281,1750474245172,-151.0,0.000267,7]
[366819282,1750474245182,-151.0,0.000267,7]
[366819283,1750474245192,-206.083001,0.000267,7]
[366819284,1750474245203,-206.083001,0.000267,7]
[366819285,1750474245213,-206.083001,0.000267,7]
[366819286,1750474245223,-206.083001,0.000267,7]
[366819287,1750474245234,-206.083001,0.000267,7]
[366819288,1750474245246,-206.083001,0.000267,7]
[366819289,1750474245258,-151.0,0.000267,7]
[366819290,1750474245269,-151.0,0.000267,7]
[366819291,1750474245279,-151.0,0.000267,7]
[366819292,1750474245290,-151.0,0.000267,7]
[366819293,1750474245300,-151.0,0.000267,7]
[366819294,1750474245311,-151.0,0.000267,7]
[366819295,1750474245322,-151.0,0.000267,7]
[366819296,1750474245332,-186.823089,0.000267,7]
[366819297,1750474245344,-183.408709,0.000267,7]
[366819298,1750474245355,-183.408709,0.000267,7]
[366819299,1750474245366,-183.408709,0.000267,7]
[366819300,1750474245377,-183.408709,0.000267,7]
[366819301,1750474245387,-183.408709,0.000267,7]
[366819302,1750474245398,-183.408709,0.000267,7]
[366819303,1750474245410,-152.190349,0.000267,7]
[366819304,1750474245421,-834.26476573,0.000267,7]
[366819305,1750474245432,-182.449486,0.000267,7]
[366819306,1750474245443,-182.449486,0.000267,7]
[366819307,1750474245454,-182.449486,0.000267,7]
[366819308,1750474245464,-182.449486,0.000267,7]
[366819309,1750474245475,-151.0,0.000267,7]
[366819310,1750474245486,-151.0,0.000267,7]
[366819311,1750474245497,-376.0,0.000267,2]
[366819312,1750474245508,-769.0,0.000267,2]
[366819313,1750474245519,-1400.0,0.000267,9]
[366819314,1750474245530,-151.0,0.000267,7]
[366819315,1750474245541,-237.776064,0.000267,7]
[366819316,1750474245551,-227.528202,0.000267,7]
[366819317,1750474245563,-227.528202,0.000267,7]
[366819318,1750474245574,-227.528202,0.000267,7]
[366819319,1750474245586,-227.528202,0.000267,7]
[366819320,1750474245597,-1000.0,0.000267,2]
[366819321,1750474245607,-151.0,0.000267,7]
[366819322,1750474245619,-151.0,0.000267,7]
[366819323,1750474245629,-238.0,0.000267,2]
[366819324,1750474245641,-213.542876,0.000267,7]
[366819325,1750474245652,-213.542876,0.000267,7]
[366819326,1750474245663,-213.542876,0.000267,7]
[366819327,1750474245674,-213.542876,0.000267,7]
[366819328,1750474245685,-151.0,0.000267,7]
[366819329,1750474245695,-151.0,0.000267,7]
[366819330,1750474245707,-156.055712,0.000267,7]
[366819331,1750474245720,-1757.45,0.000267,2]
[366819332,1750474245732,-209.992116,0.000267,7]
[366819333,1750474245744,-209.992116,0.000267,7]
[366819334,1750474245756,-209.992116,0.000267,7]
[366819335,1750474245768,-209.992116,0.000267,7]
[366819336,1750474245780,-151.0,0.000267,7]
[366819337,1750474245792,-151.0,0.000267,7]
[366819338,1750474245802,-151.0,0.000267,7]
[366819339,1750474245814,-279.879162,0.000267,7]
[366819340,1750474245826,-5707.39,0.000267,2]
[366819341,1750474245837,-192.117625,0.000267,7]
[366819342,1750474245848,-192.117625,0.000267,7]
[366819343,1750474245859,-192.117625,0.000267,7]
[366819344,1750474245869,-192.117625,0.000267,7]
[366819345,1750474245879,-192.117625,0.000267,7]
[366819346,1750474245890,-192.117625,0.000267,7]
[366819347,1750474245902,-157.292787,0.00026704,4]
[366819348,1750474245913,-170.434084,0.00026704,4]
[366819349,1750474245926,-623.923944,0.00026704,4]
[366819350,1750474245939,-207.974648,0.00026704,4]
[366819351,1750474245953,-561.441691,0.00026704,4]
[366819352,1750474245965,-1264.519146,0.00026704,4]
[366819353,1750474245975,-1000.0,0.00026705,10]
[366819354,1750474245987,-176.2513546,0.00026705,10]
[366819355,1750474245998,-1000.0,0.00026705,10]
[366819356,1750474246009,-1000.0,0.00026705,10]
[366819357,1750474246020,-1000.0,0.00026705,10]
[366819358,1750474246031,-1000.0,0.00026705,10]
[366819359,1750474246044,-1000.0,0.00026705,10]
[366819360,1750474246056,-1000.0,0.00026705,10]
[366819361,1750474246067,-1000.0,0.00026705,10]
[366819362,1750474246078,-1000.0,0.00026705,10]
[366819363,1750474246090,-1000.0,0.00026705,10]
[366819366,1750474246102,-1017.75202797,0.00026705,10]
[366819368,1750474246115,-623.923944,0.00026708,4]
[366819370,1750474246128,-207.974648,0.00026708,4]
[366819372,1750474246139,-561.441691,0.00026708,4]
[366819375,1750474246150,-1264.519146,0.00026708,4]
[366819377,1750474246161,-834.26476573,0.0002671,10]
[366819379,1750474246172,-157.292787,0.00026711,4]
[366819381,1750474246183,-170.434084,0.00026711,4]
[366819383,1750474246194,-623.923944,0.00026711,4]
[366819385,1750474246205,-207.974648,0.00026711,4]
[366819387,1750474246216,-561.441691,0.00026711,4]
[366819391,1750474246227,-1264.519146,0.00026711,4]
[366819394,1750474246239,-168.0,0.00026712,2]
[366819396,1750474246249,-157.292787,0.00026714,4]
[366819398,1750474246260,-170.434084,0.00026714,4]
[366819399,1750474246271,-623.923944,0.00026714,4]
[366819401,1750474246282,-207.974648,0.00026714,4]
[366819403,1750474246293,-561.441691,0.00026714,4]
[366819405,1750474246304,-1264.519146,0.00026714,4]
[366819407,1750474246316,-623.923944,0.00026715,4]
[366819408,1750474246327,-207.974648,0.00026715,4]
[366819409,1750474246339,-561.441691,0.00026715,4]
[366819410,1750474246350,-1264.519146,0.00026715,4]
[366819411,1750474246362,-150.0,0.00026718,2]
[366819412,1750474246374,-3682.14533,0.0002673,2]
[366819413,1750474246386,-150.0,0.00026756,2]
[366819414,1750474246398,-700.0,0.0002677,2]
[366819415,1750474246410,-400.91536243,0.0002677,2]
[366819416,1750474246421,-490.0,0.00026771,4]
[366819417,1750474246432,-182.94488064,0.00026771,4]
[366819418,1750474246444,-250.0,0.00026771,4]
[366819419,1750474246456,-490.0,0.00026771,4]
[366819420,1750474246467,-490.0,0.00026771,4]
[366819421,1750474246478,-490.0,0.00026771,4]
[366819422,1750474246490,-490.0,0.00026771,4]
[366819423,1750474246502,-567.80527684,0.00026771,4]
[366819424,1750474246513,-490.0,0.00026771,4]
[366819425,1750474246524,-490.0,0.00026771,4]
[366819426,1750474246539,-490.0,0.00026771,4]
[366819427,1750474246553,-490.0,0.00026771,4]
[366819428,1750474246568,-1100.35,0.00026771,4]
[366819429,1750474246583,-490.0,0.00026771,4]
[366819430,1750474246597,-490.0,0.00026771,4]
[366819431,1750474246608,-490.0,0.00026771,4]
[366819432,1750474246624,-490.0,0.00026771,4]
[366819433,1750474246638,-490.0,0.00026771,4]
[366819434,1750474246652,-490.0,0.00026771,4]
[366819435,1750474246665,-953.12,0.00026771,4]
[366819436,1750474246679,-490.0,0.00026771,4]
[366819437,1750474246693,-490.0,0.00026771,4]
[366819438,1750474246707,-490.0,0.00026771,4]
[366819439,1750474246722,-3269.61,0.00026771,4]
[366819440,1750474246735,-552.55,0.00026771,4]
[366819442,1750474246747,-1038.32,0.00026771,4]
[366819443,1750474246759,-490.0,0.00026771,4]
[366819444,1750474246770,-490.0,0.00026771,4]
[366819445,1750474246784,-913.56,0.00026771,4]
[366819446,1750474246797,-490.0,0.00026771,4]
[366819447,1750474246811,-490.0,0.00026771,4]
[366819448,1750474246823,-490.0,0.00026771,4]
[366819449,1750474246838,-490.0,0.00026771,4]
[366819450,1750474246851,-490.0,0.00026771,4]
[366819451,1750474246864,-490.0,0.00026771,4]
[366819452,1750474246878,-490.0,0.00026771,4]
[366819453,1750474246892,-490.0,0.00026771,4]
[366819454,1750474246904,-490.0,0.00026771,4]
[366819455,1750474246917,-490.0,0.00026771,4]
[366819456,1750474246932,-591.39,0.00026771,4]
[366819457,1750474246945,-490.0,0.00026771,4]
[366819458,1750474246958,-573.38806832,0.00026771,4]
[366819459,1750474246971,-590.41,0.00026771,4]
[366819460,1750474246986,-490.0,0.00026771,4]
[366819461,1750474246998,-490.0,0.00026771,4]
[366819462,1750474247011,-490.0,0.00026771,4]
[366819463,1750474247026,-490.0,0.00026771,4]
[366819464,1750474247040,-490.0,0.00026771,4]
[366819465,1750474247056,-490.0,0.00026771,4]
[366819466,1750474247069,-216.80393022,0.00026771,4]
[366819467,1750474247082,-490.0,0.00026771,4]
[366819468,1750474247096,-490.0,0.00026771,4]
[366819469,1750474247108,-1449.52,0.00026771,4]
[366819470,1750474247120,-490.0,0.00026771,4]
[366819471,1750474247132,-490.0,0.00026771,4]
[366819472,1750474247144,-490.0,0.00026771,4]
[366819473,1750474247158,-490.0,0.00026771,4]
[366819474,1750474247173,-490.0,0.00026771,4]
[366819475,1750474247187,-490.0,0.00026771,4]
[366819476,1750474247200,-490.0,0.00026771,4]
[366819477,1750474247210,-490.0,0.00026771,4]
[366819478,1750474247222,-490.0,0.00026771,4]
[366819479,1750474247235,-697.72,0.00026771,4]
[366819480,1750474247249,-490.0,0.00026771,4]
[366819481,1750474247263,-648.37,0.00026771,4]
[366819482,1750474247277,-490.0,0.00026771,4]
[366819483,1750474247289,-490.0,0.00026771,4]
[366819484,1750474247302,-490.0,0.00026771,4]
[366819485,1750474247314,-490.0,0.00026771,4]
[366819486,1750474247326,-490.0,0.00026771,4]
[366819487,1750474247339,-490.0,0.00026771,4]
[366819488,1750474247352,-1005.71,0.00026771,4]
[366819489,1750474247365,-684.99,0.00026771,2]
[366819490,1750474247379,-490.0,0.00026771,4]
[366819491,1750474247391,-490.0,0.00026771,4]
[366819492,1750474247403,-490.0,0.00026771,4]
[366819493,1750474247415,-490.0,0.00026771,4]
[366819494,1750474247427,-490.0,0.00026771,4]
[366819495,1750474247439,-526.12,0.00026771,4]
[366819496,1750474247451,-490.0,0.00026771,4]
[366819497,1750474247463,-192.117625,0.00026771,7]
[366819498,1750474247475,-522.32,0.00026771,4]
[366819499,1750474247487,-490.0,0.00026771,4]
[366819500,1750474247500,-192.117625,0.00026771,7]
[366819501,1750474247512,-490.0,0.00026771,4]
[366819502,1750474247524,-4046.66,0.00026771,4]
[366819503,1750474247536,-490.0,0.00026771,4]
[366819504,1750474247548,-490.0,0.00026771,4]
[366819505,1750474247560,-490.0,0.00026771,4]
[366819506,1750474247573,-602.57,0.00026771,4]
[366819507,1750474247585,-490.0,0.00026771,4]
[366819508,1750474247597,-490.0,0.00026771,4]
[366819509,1750474247608,-22182.67136559,0.00026771,2]
[366819510,1750474247620,-490.0,0.00026772,4]
[366819511,1750474247633,-490.0,0.00026772,4]
[366819512,1750474247644,-490.0,0.00026772,4]
[366819513,1750474247657,-490.0,0.00026772,4]
[366819514,1750474247669,-490.0,0.00026772,4]
[366819515,1750474247681,-490.0,0.00026772,4]
[366819516,1750474247693,-490.0,0.00026772,4]
[366819517,1750474247707,-490.0,0.00026772,4]
[366819518,1750474247719,-490.0,0.00026772,4]
[366819519,1750474247732,-490.0,0.00026772,4]
[366819520,1750474247744,-490.0,0.00026772,4]
[366819521,1750474247760,-490.0,0.00026772,4]
[366819522,1750474247773,-490.0,0.00026772,4]
[366819523,1750474247784,-490.0,0.00026772,4]
[366819524,1750474247797,-490.0,0.00026772,4]
[366819525,1750474247809,-490.0,0.00026772,4]
[366819526,1750474247822,-490.0,0.00026772,4]
[366819527,1750474247834,-490.0,0.00026772,4]
[366819528,1750474247848,-490.0,0.00026772,4]
[366819529,1750474247860,-490.0,0.00026772,4]
[366819530,1750474247872,-490.0,0.00026772,4]
[366819531,1750474247884,-490.0,0.00026772,4]
[366819532,1750474247898,-352.30588039,0.00026772,4]
[366819533,1750474247911,-490.0,0.00026772,4]
[366819534,1750474247923,-490.0,0.00026772,4]
[366819535,1750474247936,-490.0,0.00026772,4]
[366819536,1750474247949,-490.0,0.00026772,4]
[366819537,1750474247963,-490.0,0.00026772,4]
[366819538,1750474247976,-490.0,0.00026772,4]
[366819539,1750474247988,-490.0,0.00026772,4]
[366819540,1750474248000,-490.0,0.00026772,4]
[366819541,1750474248012,-490.0,0.00026772,4]
[366819542,1750474248024,-490.0,0.00026772,4]
[366819543,1750474248036,-490.0,0.00026772,4]
[366819544,1750474248051,-629.43,0.00026772,4]
[366819545,1750474248064,-365.50447391,0.00026772,4]
[366819546,1750474248076,-490.0,0.00026772,4]
[366819547,1750474248089,-490.0,0.00026772,4]
[366819548,1750474248102,-490.0,0.00026772,4]
[366819549,1750474248115,-490.0,0.00026772,4]
[366819550,1750474248131,-490.0,0.00026772,4]
[366819551,1750474248143,-490.0,0.00026772,4]
[366819552,1750474248156,-490.0,0.00026772,4]
[366819553,1750474248167,-490.0,0.00026772,4]
[366819554,1750474248180,-336.97111675,0.00026772,4]
[366819555,1750474248192,-490.0,0.00026772,4]
[366819556,1750474248204,-490.0,0.00026772,4]
[366819557,1750474248216,-490.0,0.00026772,4]
[366819558,1750474248228,-490.0,0.00026772,4]
[366819559,1750474248241,-490.0,0.00026772,4]
[366819560,1750474248253,-490.0,0.00026772,4]
[366819561,1750474248266,-490.0,0.00026772,4]
[366819562,1750474248279,-490.0,0.00026772,4]
[366819563,1750474248292,-490.0,0.00026772,4]
[366819564,1750474248304,-490.0,0.00026772,4]
[366819565,1750474248317,-490.0,0.00026772,4]
[366819566,1750474248329,-490.0,0.00026772,4]
[366819567,1750474248341,-490.0,0.00026772,4]
[366819568,1750474248353,-490.0,0.00026772,4]
[366819569,1750474248365,-506.067724,0.00026772,7]
[366819570,1750474248378,-151.0,0.00026772,7]
[366819571,1750474248389,-506.067724,0.00026772,7]
[366819572,1750474248402,-490.0,0.00026772,4]
[366819573,1750474248415,-326.92415492,0.00026772,4]
[366819574,1750474248427,-151.0,0.00026772,7]
[366819575,1750474248439,-490.0,0.00026772,4]
[366819576,1750474248451,-151.0,0.00026772,7]
[366819577,1750474248463,-490.0,0.00026772,4]
[366819578,1750474248475,-490.0,0.00026772,4]
[366819579,1750474248488,-490.0,0.00026772,4]
[366819580,1750474248500,-490.0,0.00026772,4]
[366819581,1750474248513,-206.083001,0.00026772,7]
[366819582,1750474248525,-206.083001,0.00026772,7]
[366819583,1750474248536,-490.0,0.00026772,4]
[366819584,1750474248548,-490.0,0.00026772,4]
[366819585,1750474248560,-610.49,0.00026772,4]
[366819586,1750474248572,-490.0,0.00026772,4]
[366819587,1750474248583,-490.0,0.00026772,4]
[366819588,1750474248596,-490.0,0.00026772,4]
[366819589,1750474248608,-490.0,0.00026772,4]
[366819590,1750474248620,-490.0,0.00026772,4]
[366819591,1750474248632,-490.0,0.00026772,4]
[366819592,1750474248644,-151.0,0.00026772,7]
[366819593,1750474248656,-490.0,0.00026772,4]
[366819594,1750474248669,-234.25648613,0.00026772,4]
[366819595,1750474248682,-490.0,0.00026772,4]
[366819596,1750474248694,-151.0,0.00026772,7]
[366819597,1750474248706,-183.408709,0.00026772,7]
[366819598,1750474248719,-183.408709,0.00026772,7]
[366819599,1750474248730,-490.0,0.00026772,4]
[366819600,1750474248742,-490.0,0.00026772,4]
[366819601,1750474248755,-472.23527106,0.00026772,4]
[366819602,1750474248766,-259.13745218,0.00026772,4]
[366819603,1750474248779,-490.0,0.00026772,4]
[366819604,1750474248790,-490.0,0.00026772,4]
[366819605,1750474248801,-490.0,0.00026772,4]
[366819606,1750474248813,-490.0,0.00026772,4]